[Event "10th Cherry Blossom Classic 2023"]
[Site "Dulles"]
[Date "2023.05.26"]
[Round "2.5"]
[White "Brady, Tyson"]
[Black "Bora, Safal"]
[Result "0-1"]
[ECO "C68"]
[WhiteElo "2092"]
[BlackElo "2462"]
[Annotator "TA"]
[PlyCount "108"]
[EventDate "2023.05.24"]
[EventType "swiss"]
[EventCountry "USA"]
[SourceTitle "playchess.com"]
[Source "ChessBase"]
[SourceQuality "1"]
[TimeControl "5400+30"]

{[%evp 9,108,29,30,14,16,16,18,18,23,22,15,0,0,0,0,0,0,0,0,-4,0,0,0,0,0,-19,-13,-20,-10,-10,-9,-20,-19,-16,-15,-22,-18,-20,-30,-72,-78,-91,-94,-132,-131,-127,-98,-127,-122,-131,-126,-140,-137,-141,-139,-146,-144,-157,-167,-195,-80,-186,-141,-168,-153,-143,-134,-148,-144,-254,-235,-472,-480,-474,-472,-472,-472,-465,-8,-458,-458,-431,-324,-331,-260,-252,-245,-442,-413,-429,-419,-470,-458,-795,-524,-919,-799,-764,-654,-29985,-29986]} 1. e4 {[%emt 1:31:00]} e5 {[%emt 0:01:36]} 2. Nf3 {[%emt 0:00:00]} Nc6 {[%emt 0:00:07]} 3. Bb5 {[%emt 0:00:00]} a6 {[%emt 0:00:09]} 4. Bxc6 {[%emt 0:00:00]} dxc6 {[%emt 0:00:08]} 5. O-O {[%emt 0:00:00]} Qf6 {[%emt 0:00:36]} 6. d4 {[%emt 0:00:00] C68: Ruy Lopez: Exchange Variation, sidelines.} exd4 {[%emt 0:00:09]} 7. Bg5 {[%emt 0:00:00]} Qd6 {[%emt 0:00:19]} 8. Nxd4 {[%emt 0:00:00] The position is equal.} Be7 {[%emt 0:00:18]} 9. Be3 {[%emt 0:00:00] The modern move.} Nh6 {[%emt 0:02:57]} 10. f3 {[%emt 0:00:00] Inhibits Ng4.} f5 {[%emt 0:00:24]} 11. Bxh6 {[%emt 0:00:00]} Qxh6 {[%emt 0:00:38]} 12. Nxf5 {[%emt 0:00:00]} Bxf5 {[%emt 0:00:18]} 13. exf5 {[%emt 0:00:00]} O-O {[%emt 0:02:37] [#]} 14. Qe2 $146 {[%emt 0:00:00] White is weak on the dark squares} ({Predecessor:} 14. g3 Rad8 15. Qe2 Bc5+ 16. Kh1 Rxf5 17. Rd1 Rxd1+ 18. Qxd1 Rd5 19. Qf1 Bd6 20. Nc3 Rd2 21. Ne2 {0-1 Licznerski,L (2441)-Sargsyan,S (2645) EU-ch Rapid Katowice 2022 (5)}) 14... Bc5+ {[%emt 0:02:50]} 15. Kh1 {[%emt 0:00:00] And now Qc4+ would win.} Rxf5 {[%emt 0:00:33][%cal Of5e5]} 16. Nc3 {[%emt 0:00:00]} Bd6 {[%emt 0:04:35][%csl Gd6][%cal Rh6h2]} 17. g4 {[%emt 0:00:00]} Rf7 {[%emt 0:03:22]} 18. Ne4 {[%emt 0:00:00]} Raf8 {[%emt 0:02:30]} 19. Nxd6 {[%emt 0:00:00]} cxd6 {[%emt 0:01:32]} 20. Rae1 {[%emt 0:00:00]} Qh3 {[%emt 0:14:33][%cal Rf7f3]} 21. f4 {[%emt 0:00:00]} h6 {[%emt 0:17:18]} (21... Rxf4 {is a self mate.} 22. Qe6+ Kh8 23. Rxf4) 22. f5 {[%emt 0:00:00] [#]} h5 $1 {[%emt 0:00:24][%mdl 64] Deflection} 23. gxh5 {[%emt 0:00:00]} (23. Rd1 Qxg4) 23... Rxf5 {[%emt 0:00:50]} 24. Rxf5 {[%emt 0:00:00]} Qxf5 $11 {[%emt 0:02:06][%mdl 4096] Endgame KQR-KQR} 25. h6 {[%emt 0:00:00]} gxh6 {[%emt 0:01:27]} 26. Qe6+ {[%emt 0:00:00]} Qxe6 {[%emt 0:05:00]} 27. Rxe6 $17 {[%emt 0:00:00][%cal Oh1g2] KR-KR} Rf1+ $1 {[%emt 0:01:32]} ({Inferior is} 27... Rf2 28. Rxd6 Rxc2 29. Rd8+ Kf7 30. Rd7+ Ke6 31. Rxb7 $15) 28. Kg2 {[%emt 0:00:00]} Rc1 {[%emt 0:03:37]} 29. Re2 {[%emt 0:00:00]} Kf7 {[%emt 0:01:19]} 30. Kg3 {[%emt 0:00:00]} Rg1+ {[%emt 0:02:09]} 31. Kf4 {[%emt 0:00:00]} Kf6 {[%emt 0:00:57]} 32. a4 {[%emt 0:07:50]} Rg5 {[%emt 0:03:40]} 33. b3 {[%emt 0:02:55]} a5 {[%emt 0:04:22]} 34. c4 {[%emt 0:01:48]} Rg1 {[%emt 0:01:27]} (34... Rf5+ $19 {has better winning chances.} 35. Kg4 d5) 35. Rb2 {[%emt 0:00:27]} (35. Rd2 $17 {might work better.} Rf1+ 36. Ke4) 35... Rd1 {[%emt 0:02:03]} 36. Ke4 {[%emt 0:00:19]} Re1+ {[%emt 0:03:01]} 37. Kd3 {[%emt 0:00:49]} Re5 {[%emt 0:03:17]} 38. b4 {[%emt 0:00:24] [#]} Ke6 $1 {[%emt 0:00:40]} 39. bxa5 {[%emt 0:00:13]} (39. b5 $17) 39... Rxa5 $19 {[%emt 0:00:09]} 40. Rxb7 $2 {[%emt 0:00:15]} (40. Rg2 Rxa4 41. Rg6+ Ke5 42. Rxh6) 40... Rxa4 {[%emt 0:00:07]} 41. Rg7 {[%emt 0:02:44]} Ra3+ {[%emt 0:00:19]} 42. Ke4 {[%emt 0:00:22] [#]} Rh3 $1 {[%emt 0:00:10]} 43. Rg6+ {[%emt 0:00:03]} Ke7 $2 {[%emt 0:00:07]} (43... Kd7 $19 44. Rg7+ Kc8) 44. Rg7+ $2 {[%emt 0:00:50][%mdl 8192] Loses the game.} (44. c5 $1 $11 {and White has nothing to worry.}) 44... Kf6 {[%emt 0:00:14]} 45. Rg2 {[%emt 0:01:19]} Rh4+ {[%emt 0:01:10]} 46. Kd3 {[%emt 0:00:00]} Ke6 {[%emt 0:00:14]} 47. Re2+ {[%emt 0:01:07]} Kd7 {[%emt 0:00:18] White must now prevent ...Kc7.} 48. Rf2 $2 {[%emt 0:00:17]} (48. Kc3) 48... Rh3+ {[%emt 0:00:59]} 49. Ke4 {[%emt 0:00:40]} Kc7 {[%emt 0:01:49]} 50. Kf5 {[%emt 0:00:53]} Rh4 {[%emt 0:00:30]} 51. Rc2 {[%emt 0:00:01]} (51. Rf3 $142 Rxc4 52. Rh3) 51... Kb6 {[%emt 0:00:22]} 52. Rd2 {[%emt 0:01:35]} Kc5 {[%emt 0:00:44]} 53. Ke6 {[%emt 0:00:02]} Rxc4 {[%emt 0:00:22] ...Rd4 would be deadly.} ({Weaker is} 53... Kxc4 54. Kxd6 Kc3 55. Ra2 $11) 54. Rxd6 {[%emt 0:00:06]} Rd4 {[%emt 0:14:36] Weighted Error Value: White=0.59/Black=0.21 (precise)} 0-1

[Event "10th Cherry Blossom Classic 2023"]
[Site "Dulles"]
[Date "2023.05.26"]
[Round "2.6"]
[White "Stearman, Josiah"]
[Black "Morefield, Jason"]
[Result "1/2-1/2"]
[ECO "E54"]
[WhiteElo "2385"]
[BlackElo "2167"]
[Annotator "TA"]
[PlyCount "59"]
[EventDate "2023.05.24"]
[EventType "swiss"]
[EventCountry "USA"]
[SourceTitle "playchess.com"]
[Source "ChessBase"]
[SourceQuality "1"]
[TimeControl "5400+30"]

{[%evp 17,59,0,2,-5,0,0,-17,-10,-7,-7,-12,-10,-4,-8,-3,0,0,0,0,-35,-20,-73,-62,-209,-185,-186,-135,-135,-121,-128,-81,-87,-52,-56,-23,-12,-14,-28,0,0,0,0,0,0]} 1. d4 {[%emt 0:01:01]} Nf6 {[%emt 0:00:10]} 2. c4 {[%emt 0:00:04]} e6 {[%emt 0:00:12]} 3. Nc3 {[%emt 0:00:04]} Bb4 {[%emt 0:00:11]} 4. e3 {[%emt 0:00:03]} O-O {[%emt 0:00:12]} 5. Bd3 {[%emt 0:00:04]} d5 {[%emt 0:00:12]} 6. Nf3 {[%emt 0:00:04]} dxc4 {[%emt 0:00:11]} 7. Bxc4 {[%emt 0:00:06]} c5 {[%emt 0:00:11]} 8. O-O {[%emt 0:00:04]} cxd4 {[%emt 0:00:10]} 9. exd4 {[%emt 0:00:04]} b6 {[%emt 0:00:13][%cal Bb7b6,Bb6b5][%mdl 32]} 10. Qa4 {[%emt 0:00:06] E54: Nimzo-Indian: Rubinstein: Main Line: 7...dxc4 8 Bxc4.} Be7 {[%emt 0:02:37]} 11. Be3 {[%emt 0:00:10]} Bb7 {[%emt 0:00:15]} 12. Ne5 {[%emt 0:00:04]} a6 {[%emt 0:02:28]} 13. Qb3 {[%emt 0:00:06][%cal Oe5f7]} b5 {[%emt 0:07:59]} 14. Nxf7 {[%emt 0:00:10][%mdl 64] Remove Defender} Rxf7 {[%emt 0:02:35]} 15. Bxe6 {[%emt 0:00:07] [#]} Qf8 $146 {[%emt 0:01:16][%cal Ob8c6]} ({Predecessor:} 15... Qe8 16. Rfe1 Bc8 17. Bxf7+ Qxf7 18. Bg5 Qxb3 19. axb3 Kf7 20. Nxb5 Nbd7 21. Bf4 Bb7 {1-0 Van Foreest,J (2682)-Huschenbeth,N (2612) ESP-chT CECLUB Honor 2020 (7.4)}) 16. Rfe1 {[%emt 0:02:43]} (16. Bg5 Nc6) 16... Nc6 {[%emt 0:01:18][%cal Oe7d6]} 17. Bg5 {[%emt 0:04:12]} h6 {[%emt 0:13:03]} 18. Bxf6 {[%emt 0:06:15]} Bxf6 {[%emt 0:00:08]} 19. Ne4 {[%emt 0:00:56]} (19. Bxf7+ $11 {keeps the balance.} Qxf7 20. Ne4 (20. Qxf7+ Kxf7 21. Ne4 Rd8 $15) 20... Qxb3 21. Nxf6+ Kf7 22. axb3 Kxf6 23. Rad1) 19... Nxd4 $17 {[%emt 0:04:48]} (19... Bxd4 $2 20. Bxf7+ Qxf7 21. Qxf7+ Kxf7 22. Nd6+ Kg8 23. Nxb7 $18) 20. Nxf6+ {[%emt 0:00:20] [#]} ({White must play} 20. Bxf7+ $15 Kh8 21. Qd1 Qxf7 22. Nd6) 20... Kh8 $1 $19 {[%emt 0:00:17]} ({And not} 20... gxf6 21. Bxf7+ Qxf7 22. Qxf7+ Kxf7 23. Rad1 $11) 21. Qd3 {[%emt 0:03:43][%csl Gf6][%cal Rd3h7]} (21. Bxf7 $2 {too greedy.} Nxb3 22. Bxb3 Qxf6 $19) 21... Nf3+ {[%emt 0:00:09]} (21... Rxf6 $19 22. Qxd4 Rg6) 22. gxf3 $17 {[%emt 0:05:29][%csl Gf6][%cal Rd3h7]} Rxf6 {[%emt 0:00:08]} 23. Bg4 {[%emt 0:06:47]} Rd8 {[%emt 0:00:45]} ({Black should try} 23... Bxf3 24. Bxf3 Rxf3) 24. Qc2 {[%emt 0:01:17]} Rxf3 {[%emt 0:03:09]} (24... Bxf3 {simplifies} 25. Bxf3 Rxf3 26. Re5 Rf4) 25. Rad1 $1 {[%emt 0:02:31] And now Rxd8 would win.} Rxd1 {[%emt 0:02:44]} (25... Rf4 $5 {[%cal Rf4g4]} 26. h3 Rb8 $15) 26. Rxd1 {[%emt 0:00:27]} Rf4 {[%emt 0:00:39]} 27. h3 {[%emt 0:00:30]} Bf3 {[%emt 0:04:22]} 28. Bxf3 {[%emt 0:03:13] The position is equal.} Rxf3 {[%emt 0:00:11]} 29. Rd3 {[%emt 0:08:31]} Rxd3 {[%emt 0:03:37]} 30. Qxd3 {[%emt 0:00:06] An exciting game.   Weighted Error Value: White=0.18 (very precise) /Black=0.13 (very precise)} 1/2-1/2

[Event "10th Cherry Blossom Classic 2023"]
[Site "Dulles"]
[Date "2023.05.26"]
[Round "2.7"]
[White "Ismayilova, Khanim"]
[Black "Park, Evan"]
[Result "0-1"]
[ECO "D94"]
[WhiteElo "1562"]
[BlackElo "2380"]
[Annotator "TA"]
[PlyCount "112"]
[EventDate "2023.05.24"]
[EventType "swiss"]
[EventCountry "USA"]
[SourceTitle "playchess.com"]
[Source "ChessBase"]
[SourceQuality "1"]
[TimeControl "5400+30"]

{[%evp 9,112,27,35,12,21,-2,37,0,1,0,11,0,45,-22,21,53,38,58,77,40,49,24,25,29,26,25,27,16,35,25,18,22,32,27,20,10,41,-204,-209,-201,-184,-198,-198,-189,-222,-199,-61,-445,-443,-446,-433,-438,-420,-433,-416,-414,-307,-281,-222,-320,-320,-320,-320,-320,-316,-316,-320,-295,-263,-296,-264,-293,-276,-298,-284,-1696,-1527,-2329,-2227,-2989,-2397,-1993,-1754,-1647,-1506,-1637,-1226,-4245,-4029,-4116,-1075,-1247,-2727,-1305,-1328,-1222,-1179,-29982,-29982,-29983,-29984,-29983,-29975,-29989,-29990]} 1. c4 {[%emt 0:00:01]} e6 {[%emt 0:00:08]} 2. Nc3 {[%emt 0:00:14]} d5 {[%emt 0:00:08]} 3. e3 {[%emt 0:00:09]} g6 {[%emt 0:00:04]} 4. d4 {[%emt 0:04:16]} Bg7 {[%emt 0:00:20]} 5. Nf3 {[%emt 0:01:34]} Nf6 {[%emt 0:00:11]} 6. Bd3 {[%emt 0:03:38] D94: Grünfeld: 4 Nf3 Bg7 5 e3.} O-O {[%emt 0:00:28]} 7. O-O {[%emt 0:06:21]} b6 {[%emt 0:01:15]} 8. e4 {[%emt 0:07:39] White is slightly better.} dxe4 {[%emt 0:03:36]} 9. Nxe4 {[%emt 0:02:51]} (9. Bxe4 Nxe4 10. Nxe4 Nc6 $15) 9... Bb7 {[%emt 0:00:08] [#]} 10. Bg5 $1 {[%emt 0:02:26][%cal Of3e5] [#]} Nc6 $146 {[%emt 0:06:38] [#]} (10... Nbd7 $5 {[%cal Rh7h6]}) ({Predecessor:} 10... Nbd7 11. Re1 h6 12. Bh4 Qc8 13. Nxf6+ Nxf6 14. Qd2 Bxf3 15. gxf3 Qd7 16. Bxf6 Bxf6 {0-1 Obolentseva,A (2283)-Ponkratov,P (2595) Voronezh op-A 21st 2017 (2)}) 11. d5 {[%emt 0:24:03]} exd5 {[%emt 0:05:11]} (11... Nb4 $5 {[%cal Re6d5]}) 12. cxd5 {[%emt 0:00:51]} Nb4 {[%emt 0:00:10]} 13. Bc4 {[%emt 0:00:33]} h6 {[%emt 0:07:57]} 14. Nxf6+ {[%emt 0:03:07]} Bxf6 {[%emt 0:00:02]} 15. Bxh6 {[%emt 0:00:11]} Re8 {[%emt 0:00:05][%cal Oe8e4]} 16. Qd2 {[%emt 0:09:09]} Nxd5 {[%emt 0:00:12]} 17. Rad1 {[%emt 0:00:17][%cal Rc4d5]} c6 {[%emt 0:00:15]} 18. Bg5 {[%emt 0:00:48]} Bxg5 {[%emt 0:02:19]} 19. Nxg5 {[%emt 0:02:29]} Qf6 {[%emt 0:00:34]} 20. Rfe1 {[%emt 0:01:16]} Rad8 {[%emt 0:02:24]} 21. Ne4 {[%emt 0:05:43]} Qf5 {[%emt 0:01:47]} 22. Nc3 {[%emt 0:04:06]} Kh7 {[%emt 0:07:21]} 23. Bd3 $2 {[%emt 0:05:58]} (23. Bxd5 $14 {stays ahead.} cxd5 24. Qd4) 23... Rxe1+ $19 {[%emt 0:03:08]} 24. Qxe1 {[%emt 0:00:59]} Nxc3 $1 {[%emt 0:00:25]} 25. Qxc3 {[%emt 0:00:59] [#]} (25. Bxf5 $2 Rxd1 $19) 25... Ba6 $1 {[%emt 0:00:59][%mdl 64] Pin} 26. Bc2 {[%emt 0:01:26][%cal Od1d8]} Rxd1+ {[%emt 0:00:17]} 27. Bxd1 {[%emt 0:00:06][%mdl 4096] Endgame KQB-KQB} Qb1 {[%emt 0:00:09]} (27... Qb5 $19 {[%csl Ga6][%cal Rb5f1]} 28. Qe1 Qxb2) 28. Qd4 $2 {[%emt 0:04:29][%mdl 8192] [#]} ({White should try} 28. Qf3 $15) 28... Be2 $1 {[%emt 0:00:46]} ({Inferior is} 28... Qxa2 29. Qh4+ Kg8 30. Qd8+ Kh7 31. Qh4+ Kg8 32. Qd8+ Kh7 33. Qh4+ $11) 29. Qh4+ {[%emt 0:02:16]} Bh5 {[%emt 0:00:12][%cal Rb1d1]} 30. h3 {[%emt 0:00:07]} Qxd1+ {[%emt 0:00:03]} 31. Kh2 {[%emt 0:00:02]} Qd6+ {[%emt 0:00:18]} 32. Kg1 {[%emt 0:01:26]} Kg7 {[%emt 0:01:42]} 33. g4 {[%emt 0:00:06]} Qf4 {[%emt 0:00:43]} 34. Qe7 {[%emt 0:04:00] [#]} (34. b3 {is a better defense.}) 34... Bxg4 $1 {[%emt 0:00:09]} 35. hxg4 {[%emt 0:00:05]} Qxg4+ {[%emt 0:00:02] KQ-KQ} 36. Kf1 {[%emt 0:00:09]} Qd1+ {[%emt 0:00:04]} 37. Kg2 {[%emt 0:00:08]} Qd5+ {[%emt 0:00:02]} 38. Kg1 {[%emt 0:00:27]} a5 {[%emt 0:00:23][%cal Oc6c5,Ba7a5,Ba5a4][%mdl 32]} (38... Qxa2 $2 {loses.} 39. Qe5+ Kh6 40. Qh2+ Kg5 41. Qe5+ Kh4 42. Qh2+ Kg4 43. Qg3+ Kf5 44. Qf3+ Kg5 45. Qg2+ Kf4 46. Qxc6 $19) 39. Qe3 {[%emt 0:01:38]} Qc5 {[%emt 0:00:48] And now ...Qxe3 would win.} (39... Qxa2 $2 {too greedy.} 40. Qe5+ f6 41. Qc7+ Kh6 42. Qf4+ Kh5 43. Qf3+ Kg5 44. Qe3+ Kg4 45. Qg3+ Kh5 46. Qf3+ Kg5 47. Qg3+ Kf5 48. Qf3+ Ke5 49. Qe3+ Kd6 50. Qxb6 $19) 40. Qd2 {[%emt 0:00:19]} a4 {[%emt 0:00:11]} 41. a3 {[%emt 0:02:11]} b5 {[%emt 0:00:05] Hoping for ...Qc4.} 42. Kf1 $2 {[%emt 0:00:34]} (42. b4 axb3 43. Qb2+ f6 44. Qxb3) 42... Qc4+ {[%emt 0:00:09]} 43. Kg1 {[%emt 0:00:03]} c5 {[%emt 0:00:13][%cal Bc6c5,Bc5b4,Bb4b3,Bb3b2][%mdl 32]} 44. Qe3 {[%emt 0:00:15]} Qg4+ {[%emt 0:00:22]} 45. Kf1 {[%emt 0:00:18]} Qd1+ {[%emt 0:00:06]} 46. Kg2 {[%emt 0:00:08]} Qd5+ {[%emt 0:00:02]} 47. Kg1 {[%emt 0:00:14]} b4 {[%emt 0:00:06]} 48. axb4 {[%emt 0:00:23]} cxb4 {[%emt 0:00:06]} 49. Qa7 {[%emt 0:00:27]} Qd1+ {[%emt 0:00:14]} (49... Qd2 $142 50. Qxa4 Qxb2) 50. Kg2 {[%emt 0:00:13]} Qd2 {[%emt 0:00:12]} 51. Qxa4 {[%emt 0:01:24]} Qxb2 {[%emt 0:00:08] ...Qc3 is the strong threat.} 52. Qa7 {[%emt 0:00:25]} Qc3 {[%emt 0:00:05] ( -> ...b3)} 53. Qb6 {[%emt 0:00:48]} b3 {[%emt 0:00:06] Black mates.} 54. Qb5 {[%emt 0:00:13]} b2 {[%emt 0:00:18]} 55. Qb6 {[%emt 0:04:02]} Qe5 {[%emt 0:00:07]} 56. Kh3 {[%emt 0:00:00]} Qf5+ {[%emt 0:00:18] Weighted Error Value: White=0.81/Black=0.22 (precise)} 0-1

[Event "10th Cherry Blossom Classic 2023"]
[Site "Dulles"]
[Date "2023.05.26"]
[Round "2.8"]
[White "Samuelson, Andrew"]
[Black "Nyzhnyk, Illya"]
[Result "0-1"]
[ECO "B90"]
[WhiteElo "2019"]
[BlackElo "2644"]
[Annotator "TA"]
[PlyCount "89"]
[EventDate "2023.05.24"]
[EventType "swiss"]
[EventCountry "USA"]
[SourceTitle "playchess.com"]
[Source "ChessBase"]
[SourceQuality "1"]
[TimeControl "5400+30"]

{[%evp 17,89,18,26,27,16,23,23,2,4,0,22,6,17,11,32,16,30,39,53,54,62,56,87,80,102,54,88,0,0,-15,-15,-19,0,-23,-23,-65,-66,-66,-66,-145,-145,-223,-232,-236,-239,-221,-222,-218,-200,-175,-59,-50,-38,-33,-35,-29,0,0,0,0,0,0,8,8,8,-5097,-4133,-29984,-29984,-29989,-29990,-29990,-29991,-29990]} 1. e4 {[%emt 0:00:03]} c5 {[%emt 0:00:07]} 2. Nf3 {[%emt 0:00:08]} d6 {[%emt 0:00:06]} 3. d4 {[%emt 0:00:06]} cxd4 {[%emt 0:00:05]} 4. Nxd4 {[%emt 0:00:05]} Nf6 {[%emt 0:00:05]} 5. Nc3 {[%emt 0:00:06]} a6 {[%emt 0:00:03]} 6. Be3 {[%emt 0:00:17]} e5 {[%emt 0:00:08]} 7. Nb3 {[%emt 0:00:05]} Be6 {[%emt 0:00:04]} 8. f3 {[%emt 0:00:07]} h5 {[%emt 0:00:09]} 9. Qd2 {[%emt 0:00:25]} Nbd7 {[%emt 0:00:06]} 10. Nd5 {[%emt 0:00:21] B90: Sicilian Najdorf: Unusual White 6th moves, 6 Be3 Ng4 and 6 Be3 e5.} Bxd5 {[%emt 0:00:27]} 11. exd5 {[%emt 0:00:08]} g6 {[%emt 0:00:23]} 12. c4 {[%emt 0:00:29] White has an edge.} Bg7 {[%emt 0:02:05]} 13. Be2 {[%emt 0:00:20]} b6 {[%emt 0:05:05] Wards off Na5} 14. O-O {[%emt 0:00:36]} O-O {[%emt 0:00:03]} 15. Rac1 {[%emt 0:00:35]} a5 {[%emt 0:02:01]} 16. Na1 {[%emt 0:01:44][%cal Bb3a1,Ba1c2,Bc2a3,Ba3b5][%mdl 32]} Nc5 {[%emt 0:00:20]} 17. Nc2 {[%emt 0:00:38]} Nfd7 {[%emt 0:00:07]} 18. Na3 {[%emt 0:00:54]} f5 {[%emt 0:07:10]} 19. Nb5 {[%emt 0:10:00]} Nf6 {[%emt 0:01:08]} 20. b3 {[%emt 0:05:20] [#]} Qe7 $146 {[%emt 0:02:49]} ({Predecessor:} 20... e4 21. f4 Ng4 22. Bxg4 hxg4 23. Nd4 Re8 24. Rcd1 Kh7 25. Qf2 Qf6 26. h3 gxh3 27. gxh3 {1-0 Forgacs,A (2215)-Szeberenyi,A (2328) Budapest FS07 IM 2022 (6)}) 21. Qc2 {[%emt 0:01:19]} (21. Bd1 $16) 21... e4 {[%emt 0:00:44]} 22. f4 {[%emt 0:00:40]} ({White should play} 22. Bf4 $16) 22... Ng4 $11 {[%emt 0:00:05]} 23. Bxg4 {[%emt 0:00:08]} hxg4 {[%emt 0:00:40]} 24. Rcd1 {[%emt 0:02:40]} Rfc8 {[%emt 0:03:14]} 25. Qe2 {[%emt 0:01:33]} a4 {[%emt 0:01:12]} 26. Rb1 {[%emt 0:02:08]} (26. h3 {with more complications.} axb3 27. axb3 gxh3 28. g4) 26... axb3 {[%emt 0:00:22]} 27. axb3 {[%emt 0:00:07]} Ra6 {[%emt 0:00:34]} 28. Bd4 {[%emt 0:02:20]} ({Better is} 28. Rfd1 $15) 28... Rca8 $17 {[%emt 0:01:44]} 29. Bxg7 {[%emt 0:00:18]} (29. Qe3 $17) 29... Qxg7 $19 {[%emt 0:00:20]} 30. Qb2 {[%emt 0:01:18]} Qxb2 {[%emt 0:01:28]} 31. Rxb2 {[%emt 0:00:05]} Nd3 {[%emt 0:00:03]} 32. Re2 {[%emt 0:04:52]} Ra1 {[%emt 0:00:22]} 33. g3 {[%emt 0:00:17] [#]} g5 {[%emt 0:00:06]} 34. fxg5 $15 {[%emt 0:02:13]} (34. Nxd6 $2 {perishes.} gxf4 35. gxf4 (35. Nxf5 {is a self mate.} Rxf1+ {[%mdl 64] Remove Defender} 36. Kxf1 Ra1+) 35... Rxf1+ 36. Kxf1 Ra1+ 37. Kg2 Nxf4+ 38. Kf2 Nxe2 39. Kxe2 f4 40. Nxe4 Ra2+ 41. Kf1 Rxh2 42. Nf6+ Kf8 43. Nxg4 Rb2 $19) 34... Rxf1+ {[%emt 0:00:04]} 35. Kxf1 {[%emt 0:00:08][%mdl 4096] Endgame KRN-KRN} Ra1+ {[%emt 0:00:01]} 36. Kg2 {[%emt 0:00:19]} f4 {[%emt 0:00:03]} 37. gxf4 {[%emt 0:00:29]} Nxf4+ {[%emt 0:00:05]} 38. Kf2 {[%emt 0:00:05]} Nxe2 {[%emt 0:01:22]} 39. Kxe2 $11 {[%emt 0:00:04] KR-KN} Ra2+ {[%emt 0:07:46]} 40. Ke3 {[%emt 0:00:09]} Rxh2 {[%emt 0:00:04]} 41. Kxe4 $2 {[%emt 0:00:31][%mdl 8192] [#] This move loses the game for White.} (41. Nxd6 $11 Rh3+ 42. Kxe4) 41... Rf2 $1 $19 {[%emt 0:00:24] ( -> ...g3)} 42. Nxd6 {[%emt 0:02:04]} g3 {[%emt 0:00:04][%cal Bg4g3,Bg3g2][%mdl 32] Black mates.} 43. Ke3 {[%emt 0:00:41]} Rf1 {[%emt 0:00:04]} 44. Ne4 {[%emt 0:01:10]} g2 {[%emt 0:00:04]} 45. Kd4 {[%emt 1:04:55] Weighted Error Value: White=0.46/Black=0.10 (very precise)} 0-1

[Event "10th Cherry Blossom Classic 2023"]
[Site "Dulles"]
[Date "2023.05.26"]
[Round "2.9"]
[White "Durarbayli, Vasif"]
[Black "Laddha, Yash Jayesh"]
[Result "1-0"]
[ECO "C54"]
[WhiteElo "2627"]
[BlackElo "2195"]
[Annotator "TA"]
[PlyCount "57"]
[EventDate "2023.05.24"]
[EventType "swiss"]
[EventCountry "USA"]
[SourceTitle "playchess.com"]
[Source "ChessBase"]
[SourceQuality "1"]
[TimeControl "5400+30"]

{[%evp 12,57,16,16,16,12,17,17,17,13,14,7,39,28,37,38,38,29,60,47,50,45,33,40,108,100,100,94,137,119,135,116,108,131,112,108,146,168,158,145,145,117,146,151,144,122,124,110]} 1. e4 {[%emt 0:00:03]} e5 {[%emt 0:00:04]} 2. Nf3 {[%emt 0:00:07]} Nc6 {[%emt 0:00:02]} 3. Bc4 {[%emt 0:00:06]} Nf6 {[%emt 0:00:05]} 4. d3 {[%emt 0:00:06]} Bc5 {[%emt 0:00:04]} 5. O-O {[%emt 0:00:09]} d6 {[%emt 0:00:37]} 6. c3 {[%emt 0:00:15]} O-O {[%emt 0:00:07]} 7. Re1 $1 {[%emt 0:00:06][%mdl 4] is currently scoring better than 7.Bb3.} a5 {[%emt 0:00:11] C54: Giuoco Piano: 4 c3 Nf6, main lines with 5 d4 and 5 d3.} 8. h3 {[%emt 0:00:38]} Be6 {[%emt 0:00:16]} 9. Bxe6 {[%emt 0:01:11]} fxe6 {[%emt 0:00:05] The position is equal.} 10. Be3 {[%emt 0:00:08]} Bxe3 {[%emt 0:01:04]} 11. Rxe3 {[%emt 0:00:08] [#]} Ne7 $146 {[%emt 0:14:35]} ({Predecessor:} 11... d5 12. Qb3 a4 13. Qc2 d4 14. cxd4 exd4 15. Re1 Nh5 16. Nbd2 Nf4 17. a3 Qf6 {0-1 Sadhwani,R (2627)-Giri,A (2768) Chessable Masters Div 2 Lose rapid 2023 (1.3)}) 12. Nbd2 {[%emt 0:05:34]} Ng6 {[%emt 0:02:29]} 13. d4 {[%emt 0:00:53]} exd4 {[%emt 0:07:14]} 14. cxd4 {[%emt 0:00:08]} ({Don't play} 14. Nxd4 Qd7 $11) 14... Kh8 {[%emt 0:11:14]} 15. Qb3 {[%emt 0:08:48]} Qd7 {[%emt 0:05:54]} 16. Rc1 {[%emt 0:03:01]} (16. Qxb7 $2 {is the wrong capture.} Rfb8 $19) 16... b6 {[%emt 0:21:06]} 17. Qc2 {[%emt 0:09:32]} c5 {[%emt 0:11:31]} (17... Rac8 $14) 18. dxc5 $16 {[%emt 0:02:17]} bxc5 {[%emt 0:00:12]} 19. Nc4 {[%emt 0:00:32] Strongly threatening Nb6.} Qc7 {[%emt 0:05:06] [#] Dodges Nb6} 20. Nxd6 $1 {[%emt 0:01:01][%mdl 576] Discovered Attack, Remove Defender, Decoy. White is more active.} Qxd6 {[%emt 0:01:09]} 21. e5 {[%emt 0:00:08]} (21. Qxc5 $2 Qd7 22. Qd4 Qb7 $19) 21... Qe7 {[%emt 0:03:56] White must now prevent ...Nd5.} 22. exf6 {[%emt 0:00:35]} Qxf6 {[%emt 0:00:06]} 23. Qc3 {[%emt 0:01:55]} e5 {[%emt 0:06:28]} 24. Qxc5 {[%emt 0:00:50]} e4 {[%emt 0:00:29]} 25. Rxe4 {[%emt 0:00:18]} Qxb2 {[%emt 0:00:54]} 26. Qc2 {[%emt 0:02:53]} Qb7 {[%emt 0:02:27]} 27. Rb1 {[%emt 0:01:17]} Qd7 {[%emt 0:02:11]} 28. Rd1 {[%emt 0:01:02]} Qf5 {[%emt 0:02:50]} 29. Rc4 {[%emt 0:03:58] Weighted Error Value: White=0.06 (flawless) /Black=0.13 (very precise)} 1-0